bitfinex/quotes_SOLUSD_20240625
["timestamp","ask_amount","ask_price","bid_price","bid_amount"]
[1719279838697,9.66,131.91,131.9,397.2233]
[1719279838875,9.66,131.91,131.9,390.4]
[1719279840379,9.66,131.91,131.89,23.8828]
[1719279840578,9.66,131.9,131.89,23.8828]
[1719279840980,100.0,131.93,131.91,6.8227]
[1719279841180,115.5036,131.95,131.91,6.8227]
[1719279841497,9.66,131.92,131.91,6.8227]
[1719279843205,100.0,131.91,131.89,17.059]
[1719279843409,9.66,131.9,131.89,17.059]
[1719279845292,100.0,131.91,131.89,17.059]
[1719279845496,109.66,131.91,131.9,6.8233]
[1719279845805,109.66,131.91,131.89,23.8828]
[1719279846623,109.66,131.91,131.89,17.059]
[1719279846907,109.66,131.91,131.89,6.8238]
[1719279848700,109.66,131.91,131.9,6.8233]
[1719279849701,109.66,131.91,131.89,6.8237]
[1719279852214,109.66,131.91,131.88,17.0605]
[1719279852416,9.66,131.9,131.88,17.0605]
[1719279852624,109.66,131.89,131.88,17.0605]
[1719279852922,100.0,131.87,131.86,390.4]
[1719279853092,109.66,131.87,131.86,390.4]
[1719279855430,100.0,131.85,131.82,413.2585]
[1719279855606,9.66,131.84,131.83,6.8269]
[1719279857222,100.0,131.83,131.82,390.4]
[1719279857417,109.66,131.83,131.82,390.4]
[1719279858518,100.0,131.81,131.79,6.8288]
[1719279858716,9.66,131.8,131.78,23.9029]
[1719279858915,100.0,131.81,131.8,6.8285]
[1719279859226,103.02600437,131.83,131.81,6.8279]
[1719279859424,9.66,131.82,131.81,6.8279]
[1719279860502,100.0,131.83,131.81,6.8279]
[1719279860712,9.66,131.82,131.81,6.8279]
[1719279861514,100.0,131.81,131.77,23.6373]
[1719279861845,109.66,131.81,131.8,6.8285]
[1719279864907,109.66,131.81,131.79,17.0722]
[1719279865106,9.66,131.8,131.79,17.0722]
[1719279865823,9.66,131.8,131.79,23.9012]
[1719279866404,100.0,131.79,131.77,6.8295]
[1719279866603,9.66,131.78,131.77,6.8295]
[1719279867213,9.66,131.78,131.76,17.0757]
[1719279867214,9.66,131.78,131.76,23.9061]
[1719279867415,100.0,131.77,131.76,23.9061]
[1719279867708,109.66,131.77,131.76,23.9061]
[1719279868931,109.66,131.77,131.76,17.0757]
[1719279869743,109.66,131.77,131.76,23.9063]
[1719279871618,100.0,131.77,131.76,23.9063]
[1719279877043,100.0,131.8,131.76,17.0757]
[1719279877238,109.66,131.8,131.76,407.4757]
[1719279877719,9.66,131.79,131.76,407.4757]
[1719279877919,9.66,131.79,131.77,6.8296]
[1719279881916,15.7860605,131.81,131.78,6.8294]
[1719279883921,9.66,131.79,131.77,6.8299]
[1719279886340,9.66,131.79,131.78,6.8295]
[1719279887348,100.0,131.8,131.78,6.8295]
[1719279887548,109.66,131.8,131.79,6.829]
[1719279887947,103.02600437,131.83,131.81,17.0694]
[1719279888145,103.02600437,131.83,131.76,390.4]
[1719279888146,100.0,131.78,131.76,390.4]
[1719279888443,9.66,131.8,131.78,6.8292]
[1719279891252,103.02600437,131.83,131.79,6.829]
[1719279891435,103.02600437,131.83,131.79,17.0721]
[1719279891631,9.66,131.81,131.79,17.0721]
[1719279892238,9.66,131.81,131.79,23.901]
[1719279893751,109.66,131.81,131.79,23.901]
[1719279893953,109.66,131.81,131.79,17.0721]
[1719279894257,103.02600437,131.83,131.79,23.901]
[1719279894558,6.1260605,131.84,131.82,6.8274]
[1719279894849,15.7860605,131.84,131.81,23.8971]
[1719279895238,15.7860605,131.84,131.81,17.0693]
[1719279895650,9.66,131.83,131.81,17.0693]
[1719279897360,9.66,131.83,131.79,22.5889]
[1719279897361,9.66,131.83,131.79,29.4177]
[1719279898128,9.66,131.83,131.8,6.8285]
[1719279898328,109.66,131.83,131.8,6.8285]
[1719279900456,109.66,131.83,131.79,412.9889]
[1719279900646,100.0,131.81,131.79,390.4]
[1719279901447,9.66,131.82,131.79,397.229]
[1719279901633,106.1260605,131.84,131.79,390.4]
[1719279901835,100.0,131.84,131.81,6.8279]
[1719279902059,100.0,131.84,131.8,17.071]
[1719279902231,109.66,131.84,131.83,6.8269]
[1719279902433,100.0,131.84,131.82,23.8952]
[1719279902655,9.66,131.83,131.79,407.4721]
[1719279902858,9.66,131.83,131.8,6.8285]
[1719279903243,9.66,131.81,131.79,390.4]
[1719279903465,109.66,131.8,131.79,390.4]
[1719279904254,118.81206487,131.8,131.79,390.4]
[1719279904566,125.64056487,131.8,131.79,390.4]
[1719279904949,118.81206487,131.8,131.79,390.4]
[1719279905263,109.15206487,131.8,131.79,390.4]
[1719279905465,118.81206487,131.8,131.79,390.4]
[1719279907058,100.0,131.77,131.73,414.0389]
[1719279907244,109.66,131.75,131.73,17.0797]
[1719279907433,9.66,131.74,131.71,406.9652]
[1719279907638,109.66,131.75,131.71,406.9652]
[1719279907946,109.66,131.75,131.72,6.8322]
[1719279909457,100.0,131.75,131.73,17.0793]
[1719279910741,9.66,131.76,131.74,6.8316]
[1719279912267,100.0,131.8,131.75,17.0765]
[1719279912444,9.66,131.79,131.77,6.83]
[1719279912756,9.66,131.79,131.76,6.8305]
[1719279913161,109.66,131.78,131.76,6.8305]
[1719279913945,109.66,131.78,131.75,414.3075]
[1719279914145,109.66,131.76,131.75,407.4765]
[1719279915543,109.66,131.76,131.75,414.3076]
[1719279915841,100.0,131.76,131.75,414.3076]
[1719279916262,9.66,131.77,131.75,414.3076]
[1719279916263,100.0,131.78,131.77,6.83]
[1719279916438,9.66,131.78,131.77,23.9042]
[1719279916774,109.66,131.78,131.77,23.9042]
[1719279916953,109.66,131.78,131.77,17.0742]
[1719279918278,100.0,131.76,131.75,397.2311]
[1719279918452,100.0,131.76,131.75,390.4]
[1719279918659,109.66,131.76,131.75,390.4]
[1719279918971,109.66,131.76,131.71,424.0474]
[1719279919150,100.0,131.74,131.71,424.0474]
[1719279919342,100.0,131.74,131.72,6.8322]
[1719279919544,100.0,131.74,131.73,6.8321]
[1719279922854,109.66,131.74,131.71,414.315]
[1719279923065,9.66,131.73,131.71,414.315]
[1719279925052,9.66,131.73,131.71,23.915]
[1719279930873,109.66,131.74,131.72,6.8325]
[1719279931676,9.66,131.73,131.71,407.4822]
[1719279932176,9.66,131.73,131.71,414.3152]
[1719279933880,100.0,131.74,131.72,6.8326]
[1719279934180,109.66,131.74,131.72,6.8326]
[1719279938164,9.66,131.74,131.72,6.8326]
[1719279938364,9.66,131.75,131.72,6.8326]
[1719279939384,9.66,131.75,131.73,6.832]
[1719279939573,100.0,131.78,131.73,17.0797]
[1719279939772,9.15206487,131.79,131.76,6.8304]
[1719279939973,109.66,131.78,131.75,17.0772]
[1719279940170,109.66,131.78,131.72,42.5635]
[1719279940686,100.0,131.78,131.74,23.9099]
[1719279940990,9.66,131.77,131.74,23.9099]
[1719279941672,9.66,131.77,131.75,6.8309]
[1719279942577,9.66,131.77,131.74,23.91]
[1719279943790,9.66,131.77,131.75,6.831]
[1719279947590,9.15206487,131.79,131.76,17.0762]
[1719279947795,9.66,131.79,131.77,6.8296]
[1719279950792,109.66,131.8,131.77,6.8296]
[1719279950997,9.66,131.79,131.76,23.9066]
[1719279951372,100.0,131.78,131.75,6.8309]
[1719279951577,100.0,131.78,131.73,413.7734]
[1719279951578,9.66,131.77,131.73,413.7734]
[1719279951804,109.66,131.76,131.73,407.4794]
[1719279951985,109.66,131.76,131.73,390.4]
[1719279952184,100.0,131.74,131.73,390.4]
[1719279954185,100.0,131.74,131.73,397.2321]
[1719279954690,9.66,131.75,131.74,6.8316]
[1719279955195,109.66,131.76,131.74,6.8316]
[1719279956482,9.66,131.75,131.74,6.8316]
[1719279959784,109.66,131.76,131.74,6.8316]
[1719279962683,100.0,131.76,131.74,6.8316]
[1719279962874,109.66,131.76,131.74,6.8316]
[1719279964900,100.0,131.8,131.74,17.0785]
[1719279965197,15.2411,131.81,131.78,6.8294]
[1719279965504,9.66,131.79,131.78,23.9028]
[1719279965697,9.66,131.8,131.78,23.9028]
[1719279966591,15.2411,131.81,131.78,23.9028]
[1719279966822,109.15206487,131.82,131.79,6.8289]
[1719279966823,9.15206487,131.82,131.79,6.8289]
[1719279966998,9.66,131.83,131.79,6.8289]
[1719279967184,9.66,131.83,131.8,6.8285]
[1719279967381,100.0,131.82,131.78,17.0734]
[1719279967594,9.66,131.83,131.8,6.8281]
[1719279967789,109.15206487,131.84,131.8,6.8281]
[1719279968102,9.66,131.83,131.8,6.8281]
[1719279968303,9.66,131.83,131.81,6.8279]
[1719279968680,9.15206487,131.84,131.8,17.0708]
[1719279969104,9.15206487,131.84,131.82,6.8272]
[1719279969318,9.15206487,131.84,131.8,33.2794]
[1719279969507,9.66,131.87,131.83,23.8943]
[1719279969800,9.15206487,131.89,131.86,6.8254]
[1719279970190,18.81206487,131.89,131.86,6.8254]
[1719279970385,9.15206487,131.89,131.85,17.0643]
[1719279970578,9.15206487,131.89,131.85,26.7243]
[1719279971607,9.15206487,131.89,131.85,17.0643]
[1719279971790,100.0,131.88,131.85,23.8897]
[1719279971983,100.0,131.88,131.86,6.8254]
[1719279972295,9.15206487,131.89,131.87,6.8247]
[1719279972496,9.66,131.91,131.87,17.0614]
[1719279972706,9.66,131.91,131.89,6.8238]
[1719279973002,9.66,131.91,131.88,6.8242]
[1719279973179,100.0,131.9,131.88,6.8242]
[1719279973378,9.66,131.91,131.88,6.8242]
[1719279973591,9.66,131.91,131.89,6.8238]
[1719279974210,9.66,131.91,131.88,6.8242]
[1719279974394,100.0,131.9,131.88,6.8242]
[1719279974588,100.0,131.9,131.87,17.0614]
[1719279974589,100.0,131.88,131.87,17.0614]
[1719279975206,9.66,131.89,131.87,17.0614]
[1719279975388,9.66,131.89,131.87,23.8863]
[1719279976123,109.66,131.9,131.87,23.8863]
[1719279976417,109.66,131.9,131.87,22.3863]
[1719279977504,109.66,131.9,131.87,15.5614]
[1719279977711,100.0,131.9,131.88,6.824]
[1719279977909,100.0,131.86,131.85,390.4]
[1719279978395,109.66,131.86,131.85,390.4]
[1719279979424,100.0,131.86,131.85,397.2259]
[1719279980420,109.66,131.86,131.85,390.4]
[1719279981719,100.0,131.84,131.82,6.8274]
[1719279982324,100.0,131.84,131.81,407.47]
[1719279982895,100.0,131.86,131.83,17.0664]
[1719279983096,100.0,131.88,131.83,17.0664]
[1719279983404,9.66,131.87,131.83,17.0664]
[1719279983620,9.66,131.87,131.85,6.8259]
[1719279983923,100.0,131.86,131.83,23.8928]
[1719279984127,109.66,131.86,131.83,23.8928]
[1719279984495,100.0,131.86,131.84,6.8262]
[1719279984724,109.66,131.86,131.84,6.8262]
[1719279985396,100.0,131.84,131.83,17.0664]
[1719279985621,109.66,131.84,131.82,6.8271]
[1719279986108,109.66,131.84,131.83,6.8269]
[1719279986303,100.0,131.84,131.83,6.8269]
[1719279986624,100.0,131.84,131.82,23.8956]
[1719279987004,100.0,131.84,131.82,17.0683]
[1719279987405,100.0,131.84,131.83,6.8269]
[1719279988009,100.0,131.86,131.84,6.826]
[1719279988210,109.66,131.86,131.84,6.826]
[1719279990109,109.66,131.86,131.83,6.8268]
[1719279991412,109.66,131.86,131.84,6.8263]
[1719279993514,109.66,131.86,131.84,6.8263]
[1719279994136,109.66,131.86,131.83,6.8268]
[1719279994314,109.66,131.84,131.82,390.4]
[1719279994517,9.66,131.83,131.82,390.4]
[1719279996642,100.0,131.84,131.82,390.4]
[1719279996863,9.66,131.83,131.82,390.4]
[1719279997221,109.66,131.84,131.82,390.4]
[1719279998546,9.66,131.83,131.82,390.4]
[1719279998727,100.0,131.84,131.82,390.4]
[1719279998929,9.66,131.83,131.82,390.4]
[1719279999127,109.66,131.84,131.82,390.4]
[1719279999325,100.0,131.86,131.84,6.8264]
[1719279999625,109.66,131.86,131.84,6.8264]
[1719280000716,100.0,131.88,131.85,6.8256]
[1719280000920,109.66,131.88,131.85,6.8256]
[1719280001224,100.0,131.85,131.83,23.8935]
[1719280002037,100.0,131.83,131.82,390.4]
[1719280002640,100.0,131.83,131.82,397.2274]
[1719280003515,109.66,131.83,131.82,390.4]
[1719280005459,100.0,131.83,131.81,6.8279]
[1719280005756,100.0,131.83,131.82,6.8274]
[1719280005938,9.66,131.84,131.82,6.8274]
[1719280006445,109.66,131.85,131.82,6.8274]
[1719280007744,100.0,131.87,131.83,6.8268]
[1719280007934,109.66,131.87,131.82,17.0684]
[1719280008950,100.0,131.87,131.84,6.8263]
[1719280009245,109.66,131.87,131.84,6.8263]
[1719280009923,100.0,131.87,131.84,6.8263]
[1719280010128,109.66,131.87,131.84,6.8263]
[1719280010539,109.66,131.87,131.83,6.8268]
[1719280010843,109.66,131.84,131.82,17.0684]
[1719280011835,109.66,131.84,131.82,23.8958]
[1719280012042,100.0,131.84,131.82,23.8958]
[1719280012840,100.0,131.86,131.82,23.8958]
[1719280013043,9.66,131.85,131.82,23.8958]
[1719280014041,9.66,131.85,131.83,6.8269]
[1719280014234,109.66,131.86,131.82,23.8957]
[1719280014628,100.0,131.86,131.82,23.8957]
[1719280014849,9.66,131.85,131.79,414.0838]
[1719280015036,100.0,131.84,131.81,6.8276]
[1719280015349,100.0,131.84,131.82,6.8274]
[1719280017829,100.0,131.84,131.81,23.8976]
[1719280018458,109.66,131.84,131.81,23.8976]
[1719280019743,109.66,131.84,131.82,6.8274]
[1719280020449,100.0,131.84,131.82,6.8274]
[1719280020639,100.0,131.84,131.83,6.8269]
[1719280020952,9.66,131.85,131.84,6.8264]
[1719280021161,109.66,131.86,131.84,6.8264]
[1719280021554,100.0,131.88,131.86,6.8253]
[1719280021734,9.66,131.87,131.86,6.8253]
[1719280022228,100.0,131.86,131.83,17.067]
[1719280022557,109.66,131.86,131.83,17.067]
[1719280022758,109.66,131.86,131.83,23.8938]
[1719280023448,9.66,131.85,131.83,23.8938]
[1719280023643,100.0,131.86,131.84,6.8262]
[1719280023859,100.0,131.88,131.83,17.067]
[1719280024059,9.66,131.87,131.85,6.8255]
[1719280025061,100.0,131.91,131.85,17.0643]
[1719280025243,9.66,131.9,131.88,6.8243]
[1719280025438,109.66,131.89,131.87,23.8866]
[1719280025639,109.66,131.89,131.87,17.0618]
[1719280026041,100.0,131.91,131.87,23.8864]
[1719280026351,100.0,131.91,131.87,23.8866]
[1719280026553,9.66,131.9,131.87,23.8866]
[1719280026753,100.0,131.89,131.87,23.8866]
[1719280027240,100.0,131.87,131.84,30.5546]
[1719280027663,9.66,131.88,131.85,6.8259]
[1719280028637,100.0,131.87,131.85,6.8259]
[1719280028871,100.0,131.85,131.82,6.8271]
[1719280029174,109.66,131.85,131.82,6.8271]
[1719280029348,109.66,131.85,131.83,6.8268]
[1719280029746,109.66,131.87,131.84,6.8263]
[1719280029962,109.66,131.87,131.85,6.8257]
[1719280030173,109.66,131.87,131.83,23.8935]
[1719280030470,100.0,131.85,131.81,6.3552]
[1719280030644,9.66,131.84,131.81,6.3552]
[1719280031750,109.66,131.85,131.83,6.8269]
[1719280032073,109.66,131.85,131.81,6.3552]
[1719280032074,109.66,131.85,131.82,6.8273]
[1719280032250,109.66,131.85,131.82,23.8957]
[1719280032762,109.66,131.85,131.82,17.0684]
[1719280032956,9.66,131.84,131.82,17.0684]
[1719280035043,9.66,131.84,131.82,23.8958]
[1719280036274,100.0,131.83,131.81,6.3552]
[1719280036476,100.0,131.83,131.8,16.3516]
[1719280036774,109.66,131.83,131.8,6.8284]
[1719280037280,109.66,131.83,131.79,414.3007]
[1719280037647,109.66,131.83,131.8,6.8285]
[1719280038471,100.0,131.81,131.79,414.3007]
[1719280038680,109.66,131.81,131.79,390.4]
[1719280038847,9.66,131.8,131.79,390.4]
[1719280041906,9.66,131.8,131.79,397.229]
[1719280042077,100.0,131.81,131.79,397.229]
[1719280042253,109.66,131.81,131.79,397.229]
[1719280042580,100.0,131.81,131.79,397.229]
[1719280042879,9.66,131.82,131.8,6.8281]
[1719280043859,100.0,131.85,131.81,6.828]
[1719280044061,9.66,131.85,131.8,26.7307]
[1719280044279,109.66,131.85,131.8,26.7307]
[1719280044478,109.66,131.85,131.81,6.8279]
[1719280045257,9.66,131.84,131.8,23.8991]
[1719280045451,9.66,131.84,131.8,17.0707]
[1719280045783,100.0,131.83,131.8,17.0707]
[1719280045983,100.0,131.83,131.8,23.8988]
[1719280046558,9.66,131.85,131.8,32.7887]
[1719280046881,100.0,131.84,131.82,6.8271]
[1719280047568,109.66,131.84,131.81,6.8279]
[1719280048869,109.66,131.84,131.81,7.62184839]
[1719280049572,109.66,131.84,131.81,6.8279]
[1719280050684,100.0,131.84,131.82,6.8274]
[1719280051283,109.15206487,131.86,131.81,6.8278]
[1719280051767,109.15206487,131.86,131.82,6.8274]
[1719280052358,109.15206487,131.86,131.8,29.9568]
[1719280052573,109.15206487,131.86,131.8,23.1287]
[1719280053285,109.15206487,131.86,131.81,6.8276]
[1719280053483,109.15206487,131.86,131.82,6.8272]
[1719280053690,9.66,131.85,131.82,6.8272]
[1719280055279,100.0,131.84,131.81,6.8279]
[1719280060903,100.0,131.84,131.82,6.8273]
[1719280062295,9.15206487,131.86,131.83,6.8269]
[1719280062296,109.15206487,131.86,131.83,6.8269]
[1719280062511,9.66,131.85,131.83,6.8269]
[1719280062804,118.81206487,131.86,131.83,6.8269]
[1719280063394,100.0,131.83,131.79,422.8936]
[1719280063583,9.66,131.82,131.8,6.8284]
[1719280063788,9.66,131.82,131.79,429.7225]
[1719280064504,100.0,131.83,131.81,17.0691]
[1719280065184,100.0,131.83,131.81,23.897]
[1719280065812,100.0,131.83,131.81,17.0691]
[1719280066482,9.15206487,131.85,131.82,6.827]
[1719280066677,18.81206487,131.85,131.82,6.827]
[1719280067497,9.15206487,131.85,131.83,6.8269]
[1719280067682,9.15206487,131.85,131.82,6.8273]
[1719280068791,9.15206487,131.85,131.83,6.8269]
[1719280070008,100.0,131.88,131.84,6.8262]
[1719280070177,109.66,131.88,131.84,6.8262]
[1719280071587,9.15206487,131.89,131.84,6.8262]
[1719280071780,18.81206487,131.89,131.84,6.8262]
[1719280071975,18.81206487,131.89,131.84,22.5208]
[1719280072411,100.0,131.88,131.84,15.6946]
[1719280072610,109.66,131.88,131.84,15.6946]
[1719280073681,100.0,131.86,131.82,397.0355]
[1719280073983,109.66,131.86,131.82,403.8628]
[1719280075409,100.0,131.81,131.78,6.2009]
[1719280075591,109.66,131.81,131.78,6.2009]
[1719280075804,100.0,131.79,131.78,6.2009]
[1719280077002,100.0,131.81,131.78,6.2009]
[1719280077321,9.66,131.81,131.79,6.8289]
[1719280078523,9.66,131.81,131.78,6.2009]
[1719280078725,9.66,131.81,131.78,13.0304]
[1719280080515,109.66,131.81,131.78,13.0304]
[1719280081719,109.66,131.81,131.79,6.8288]
[1719280081929,9.66,131.81,131.79,6.8288]
[1719280082499,200.0,131.85,131.82,6.8271]
[1719280082826,9.66,131.84,131.81,6.8278]
[1719280083129,9.66,131.83,131.8,6.8284]
[1719280083329,9.66,131.83,131.79,6.8288]
[1719280083533,109.66,131.83,131.79,6.8288]
[1719280083738,109.15206487,131.87,131.8,26.7307]
[1719280083938,109.15206487,131.87,131.82,6.8274]
[1719280083939,9.66,131.86,131.82,6.8274]
[1719280084106,100.0,131.85,131.82,6.8274]
[1719280084507,9.66,131.86,131.82,6.8274]
[1719280084508,9.66,131.86,131.83,6.8269]
[1719280084730,109.15206487,131.87,131.84,6.8263]
[1719280084917,118.81206487,131.87,131.84,6.8263]
[1719280085530,100.0,131.89,131.85,6.8258]
[1719280085823,109.66,131.89,131.85,6.8258]
[1719280086024,9.15206487,131.91,131.86,17.0622]
[1719280086230,9.15206487,131.91,131.86,26.7222]
[1719280086425,9.15206487,131.91,131.87,9.66]
[1719280086825,109.66,131.92,131.87,9.66]
[1719280087723,100.0,131.92,131.87,9.66]
[1719280088038,109.66,131.92,131.88,6.8241]
[1719280088357,100.0,131.92,131.88,6.8241]
[1719280088519,109.66,131.92,131.88,6.8241]
[1719280088715,9.15206487,131.94,131.91,6.8224]
[1719280088937,100.0,131.96,131.93,6.8217]
[1719280089144,109.15206487,131.99,131.89,396.8629]
[1719280089447,9.15206487,131.99,131.92,17.0551]
[1719280089616,109.15206487,131.99,131.92,17.0551]
[1719280089820,100.0,132.01,131.96,6.8201]
[1719280090018,209.15206487,132.03,131.96,23.5126]
[1719280090221,100.0,131.98,131.96,6.4629]
[1719280091118,107.90856388,132.03,131.96,6.4629]
[1719280091119,100.0,132.0,131.96,6.4629]
[1719280091326,100.0,132.0,131.96,13.2831]
[1719280093145,106.8166,132.03,131.97,6.8195]
[1719280093648,100.0,132.01,131.97,6.8195]
[1719280094317,100.0,131.98,131.93,6.4746]
[1719280094552,100.0,131.98,131.94,6.8212]
[1719280095823,100.0,131.96,131.93,396.8746]
[1719280096021,100.0,131.94,131.92,15.8758]
[1719280096220,100.0,131.94,131.9,23.4371]
[1719280096421,100.0,131.92,131.9,6.3793]
[1719280097058,6.8212,131.94,131.87,441.5837]
[1719280097059,100.0,131.9,131.87,414.2861]
[1719280097217,100.0,131.9,131.86,6.2506]
[1719280097548,100.0,131.88,131.84,430.4825]
[1719280098428,100.0,131.88,131.85,6.8258]
[1719280098729,100.0,131.88,131.86,6.8252]
[1719280099533,100.0,131.88,131.84,16.1904]
[1719280099853,100.0,131.88,131.84,23.0167]
[1719280100354,100.0,131.88,131.84,6.8263]
[1719280100925,100.0,131.83,131.81,390.4]
[1719280101126,100.0,131.83,131.82,6.8274]
[1719280101325,100.0,131.83,131.8,23.2536]
[1719280101522,100.0,131.81,131.8,17.0708]
[1719280104055,100.0,131.81,131.8,23.8993]
[1719280105940,100.0,131.81,131.79,6.8289]
[1719280106251,100.0,131.79,131.77,390.4]
[1719280106451,29.02,131.82,131.74,17.0786]
[1719280106452,100.0,131.77,131.74,17.0786]
[1719280107043,100.0,131.77,131.75,6.8309]
[1719280107346,100.0,131.77,131.74,23.91]
[1719280107543,100.0,131.77,131.75,6.8309]
[1719280108449,100.0,131.75,131.72,390.4]
[1719280108632,100.0,131.75,131.72,397.2325]
[1719280109242,100.0,131.75,131.73,6.8321]
[1719280109486,100.0,131.77,131.74,6.8313]
[1719280110460,100.0,131.75,131.74,6.8313]
[1719280110646,100.0,131.75,131.73,23.9118]
[1719280110847,100.0,131.75,131.73,17.0797]
[1719280111561,100.0,131.75,131.73,23.9116]
[1719280112754,100.0,131.79,131.75,6.8311]
[1719280112960,100.0,131.77,131.75,6.8311]
[1719280113160,100.0,131.77,131.74,6.8315]
[1719280114666,100.0,131.8,131.75,17.0771]
[1719280114973,100.0,131.8,131.75,23.9081]
[1719280115540,100.0,131.78,131.75,23.9081]
[1719280116241,100.0,131.78,131.76,6.8302]
[1719280117444,100.0,131.78,131.75,23.908]
[1719280117949,100.0,131.8,131.76,6.8304]
[1719280118548,100.0,131.78,131.76,6.8304]
[1719280119559,100.0,131.8,131.76,6.8304]
[1719280122362,100.0,131.78,131.76,6.8304]
[1719280123763,100.0,131.78,131.74,6.8316]
[1719280124451,100.0,131.78,131.75,6.831]
[1719280124959,100.0,131.78,131.74,6.8314]
[1719280125156,100.0,131.78,131.75,6.831]
[1719280128259,100.0,131.8,131.75,6.8309]
[1719280128566,100.0,131.8,131.76,6.8304]
[1719280130473,100.0,131.8,131.77,6.8299]
[1719280131071,100.0,131.8,131.76,23.9063]
[1719280134957,100.0,131.8,131.76,17.0759]
[1719280135158,100.0,131.8,131.76,23.9064]
[1719280136576,9.69,131.79,131.76,23.9064]
[1719280137573,9.69,131.79,131.77,6.83]
[1719280137767,109.69,131.82,131.78,17.0734]
[1719280137980,109.69,131.82,131.78,23.9026]
[1719280138198,9.69,131.81,131.78,23.9026]
[1719280141103,100.0,131.82,131.79,6.8289]
[1719280141274,9.69,131.81,131.8,6.8285]
[1719280141474,100.0,131.84,131.81,6.8279]
[1719280141703,9.69,131.83,131.81,6.8279]
[1719280142498,9.69,131.83,131.8,23.8994]
[1719280143281,100.0,131.82,131.8,23.8994]
[1719280143602,100.0,131.8,131.78,6.829]
[1719280144479,100.0,131.8,131.77,17.0742]
[1719280144689,9.69,131.79,131.77,17.0742]
[1719280144887,9.69,131.79,131.77,23.9042]
[1719280145409,9.69,131.79,131.77,17.0742]
[1719280145780,9.69,131.79,131.77,23.9042]
[1719280146106,109.69,131.8,131.78,6.8295]
[1719280146602,109.69,131.8,131.79,6.829]
[1719280146810,100.0,131.85,131.77,34.1497]
[1719280147109,100.0,131.85,131.83,6.8269]
[1719280147311,9.69,131.84,131.83,6.8269]
[1719280147685,100.0,131.85,131.82,6.8273]
[1719280147887,100.0,131.85,131.83,6.8268]
[1719280147888,9.69,131.85,131.83,6.8268]
[1719280148386,9.69,131.86,131.83,6.8268]
[1719280148611,100.0,131.87,131.83,6.8268]
[1719280149409,100.0,131.87,131.86,6.8254]
[1719280149617,9.15206487,131.89,131.85,17.0642]
[1719280149783,9.15206487,131.89,131.87,6.8247]
[1719280149983,100.0,131.9,131.87,6.8247]
[1719280150509,100.0,131.9,131.86,6.8252]